{"text_format":"3","workbook":"xlsx","n_sheets":3,"sheets":["LHR-C","Translation","Selections"],"not_rendered":{"images":6,"defined_names":1},"read":"whole","date_system":"1900"}

{"sheet":"LHR-C","index":0,"n_rows":67,"n_cols":27,"rows_kept":67,"merged":[[1,9,2,9],[1,18,2,18],[1,25,2,25],[2,10,3,11],[3,3,4,3],[3,9,4,9],[3,18,4,18],[3,25,4,25],[5,9,6,10],[5,18,6,18],[5,25,6,25],[7,9,8,10],[7,18,8,18],[7,25,8,25],[10,0,10,1],[13,7,14,7],[14,13,15,13],[32,15,36,15],[32,16,36,16],[33,6,36,6],[33,11,36,11],[33,12,36,12],[35,19,35,20],[35,21,36,21],[35,22,36,22],[35,23,35,24],[35,25,35,26],[37,22,43,22],[37,23,43,23],[37,24,43,24],[37,25,43,25],[37,26,43,26],[48,19,48,26],[49,19,49,20],[49,21,49,22],[49,23,49,24],[49,25,49,26],[51,21,54,21],[51,22,52,22],[51,23,57,24],[51,25,54,25],[51,26,52,26],[53,22,57,22],[53,26,57,26],[55,21,57,21],[55,25,57,25],[61,22,61,26],[62,22,64,26]]}
[]
["Zvolte jazyk",{"$nulls":7},{"$f":"Translation!C35","v":"Opening breedte (W) [mm]"},{"$nulls":8},{"$f":"Translation!C13","v":"Diepte van de geleiding (D) [mm]"},{"$f":"IF(J4=\"\",\"\",VLOOKUP(J4,Selections!E17:F23,2,TRUE))","v":""},{"$nulls":5},{"$f":"Translation!C41","v":"Type motor"}]
["Select a language",{"$nulls":9},{"$f":"IF(J2/1000*J4/1000<14,\"\",\"W x H max. 14m2\")","v":""}]
["Wählen Sie eine Sprache:",null,null,"NL",{"$nulls":4},{"$f":"Translation!C25","v":"Dagmaat hoogte (H) [mm]"},{"$nulls":8},{"$f":"Translation!C17","v":"Onderste rand van de horizontale rails (K) [mm]"},{"$f":"IF(J4=\"\",\"\",J4-47)","v":""},{"$nulls":5},{"$f":"Translation!C15","v":"Lengte  van de aandrijving (X) [mm]"},{"$f":"IF(Z2=\"\",\"\",IF(Z2=Selections!K17,VLOOKUP(J4,Selections!K18:L19,2,TRUE),IF(Z2=Selections!K21,VLOOKUP(J4,Selections!K22:L23,2,TRUE),\"Error\")))","v":""}]
["Wybierz język:"]
["Sélectionner une langue:",{"$nulls":7},{"$f":"Translation!C36","v":"Bediening"},{"$nulls":8},{"$f":"Translation!C11","v":"Onderste rand van een volledig geopende deur (CPH) [mm]"},{"$f":"IF(J6=\"\",\"\",IF(J6=Selections!C17,'LHR-C'!J4-75,IF(J6=Selections!C18,'LHR-C'!J4-0,\"Error\")))","v":""},{"$nulls":5},{"$f":"Translation!C19","v":"Bevestigingspunt van de motorgeleidingsrail (E1) [mm]"},{"$f":"IF(Z2=\"\",\"\",1400)","v":""}]
["Kies een taal:"]
[{"$nulls":8},{"$f":"Translation!C43","v":"Plaatsing van de top afdichting"},{"$nulls":8},{"$f":"Translation!C40","v":"Hoogte van de latei (F) [mm]"},{"$f":"IF(OR(J6=\"\",J8=\"\"),\"\",Selections!I21+Selections!I22)","v":""},{"$nulls":5},{"$f":"Translation!C21","v":"Bevestigingsp. van de aandrijvingsgeleidingsbalk (E2) [mm]"},{"$f":"IF(Z2=\"\",\"\",IF(Z2=Selections!N17,VLOOKUP(J4,Selections!N18:O19,2,TRUE),IF(Z2=Selections!N21,VLOOKUP(J4,Selections!N22:O23,2,TRUE),\"Error\")))","v":""}]
[]
[]
["  Z",{"$nulls":6},{"$f":"IF(AND(J4=\"\",Z2=\"\"),\"X\",\"X = \"&Z4)","v":"X"}]
[]
[{"$nulls":7},{"$f":"IF(AND(J4=\"\",Z2=\"\"),\"E2\",\"E2 = \"&Z8)","v":"E2"}]
[{"$nulls":7},{"$f":"IF(J4=\"\",\"D\",\"D = \"&S2)","v":"D"}]
[{"$nulls":13},{"$f":"IF(AND(J4=\"\",Z2=\"\"),\"E1\",\"E1 = \"&Z6)","v":"E1"}]
[]
[]
[]
[]
[]
[null,null,212]
[{"$nulls":20},"W",{"$f":"Translation!C34","v":"Opening breedte "}]
[{"$nulls":15},"H",{"$nulls":4},"H",{"$f":"Translation!C24","v":"Dagmaat hoogte [mm]"}]
[null,null,{"$f":"Translation!C32","v":"Eurostopcontact CEE 7/3 of CEE 7/5"},{"$nulls":17},"D",{"$f":"Translation!C12","v":"Inbouwdiepte van de rails [mm]"}]
[null,null,{"$f":"Translation!C33","v":"230V, 50Hz, afgezekerd met 6A (10A)"},{"$nulls":17},"K",{"$f":"Translation!C16","v":"Onderste rand van de horizontale rails [mm]"}]
[{"$nulls":20},"F",{"$f":"Translation!C39","v":"Hoogte van de latei [mm]"}]
[{"$nulls":12},500,{"$nulls":7},"CEL",{"$f":"Translation!C8","v":"Plafondhoogte [mm]"}]
[{"$nulls":20},"CPH",{"$f":"Translation!C10","v":"Onderste rand van een volledig geopende deur [mm]"}]
[{"$nulls":20},"X",{"$f":"Translation!C14","v":"Lengte  van de aandrijving [mm]"}]
[{"$nulls":20},"E1",{"$f":"Translation!C18","v":"Bevestigingspunt van de motorgeleidingsrail [mm]"}]
[{"$nulls":20},"E2",{"$f":"Translation!C20","v":"Bevestigingspunt van de aandrijvingsgeleidingsbalk [mm]"}]
[{"$nulls":20},"Z",{"$f":"Translation!C31","v":"Positie van Eurostopcontact CEE, ca. 250mm"}]
[{"$nulls":15},{"$f":"IF(J4=\"\",\"CPH\",\"CPH = \"&S6)","v":"CPH"},{"$f":"IF(J4=\"\",\"CEL = H + 90\",\"CEL = \"&J4+S8)","v":"CEL = H + 90"}]
[{"$nulls":6},{"$f":"IF(J4=\"\",\"H - 87\",J4-87)","v":"H - 87"},{"$nulls":4},{"$f":"IF(J4=\"\",\"K\",\"K = \"&S4)","v":"K"},{"$f":"IF(J4=\"\",\"H - 415\",J4-415)","v":"H - 415"}]
[]
[{"$nulls":19},"H",null,"D","K",{"$f":"Translation!C6","v":"Deur zonder motor"},null,{"$f":"Translation!C7","v":"Garaged. met motor"}]
[{"$nulls":19},">","<=",null,null,"min. CEL","CPH",{"$f":"X37","v":"min. CEL"},{"$f":"Y37","v":"CPH"}]
[{"$nulls":20},2000,{"$f":"U38+575+120","v":2695},"H - 47","H + 90\n(H + 125)","H - 75","H + 125\n(H + 160)","H"]
[{"$nulls":19},{"$f":"U38+1","v":2001},2125,2820]
[{"$nulls":19},{"$f":"U39+1","v":2126},2250,2945]
[{"$nulls":19},2251,2375,3070]
[{"$nulls":19},2376,2500,3195]
[{"$nulls":19},2501,2750,3445]
[{"$nulls":19},2751,3000,3695]
[]
[]
[]
[{"$nulls":13},150]
[{"$nulls":19},{"$f":"Translation!C42","v":"Informatie betreffende de motor"}]
[{"$nulls":19},"H",null,"X",null,"E1",null,"E2"]
[{"$nulls":19},">","<=","GTA 71x","RUN 600",{"$f":"V51","v":"GTA 71x"},{"$f":"W51","v":"RUN 600"},{"$f":"X51","v":"GTA 71x"},{"$f":"Y51","v":"RUN 600"}]
[{"$nulls":20},2000,3540,3100,1400,null,3350,2950]
[{"$nulls":19},{"$f":"U52+1","v":2001},2125]
[{"$nulls":19},{"$f":"U53+1","v":2126},2250,null,{"$f":"V56","v":4240},{"$nulls":3},{"$f":"Z56","v":4060}]
[">=90",{"$nulls":4},"W",{"$nulls":5},"  >=90",{"$nulls":7},2251,2375]
[{"$nulls":19},2376,2500,4240,{"$nulls":3},4060]
[{"$nulls":19},2501,2750]
[{"$nulls":13},54,{"$nulls":5},2751,3000]
[]
[]
[]
[{"$nulls":22},"http://door-documents.com/en/guardy-installation-drawing-lhr-c"]
[{"$nulls":22},"Guardy LHR-C"]
[]
[]
[{"$nulls":25},{"$f":"Translation!C29","v":"Versie:"},{"$f":"Translation!C30","v":"Formaat:"}]
[{"$nulls":25},1710,"A4"]

{"sheet":"Translation","index":1,"n_rows":45,"n_cols":10,"rows_kept":45,"hidden":true}
[null,null,"LHR-C"]
[null,null,{"$f":"IF('LHR-C'!D4=E2,1,IF('LHR-C'!D4=F2,2,IF('LHR-C'!D4=G2,3,IF('LHR-C'!D4=H2,4,IF('LHR-C'!D4=I2,5,IF('LHR-C'!D4=J2,6,\"Chyba\"))))))","v":6},null,"CZ","EN","DE","PL","FR","NL"]
[null,null,{"$f":"VLOOKUP(E3,E:J,$C$2,FALSE)","v":"Algemene"},null,"Obecná","General","Allgemeine","Ogólna ","Hauteur","Algemene"]
[null,null,{"$f":"VLOOKUP(E4,E:J,$C$2,FALSE)","v":"hoogte [mm]"},null,"výška [mm]","height [mm]","Höhe [mm]","wysokość [mm]","Générale [mm]","hoogte [mm]"]
[null,null,"Min. plafondhoogte [mm]",null,"Min. výška stropu [mm]","Min. height of ceiling [mm]","Min. Deckenhöhe [mm]","Min wysokość stropu [mm]","Hauteur minimale du plafond [mm]","Min. plafondhoogte [mm]"]
[null,null,"Deur zonder motor",null,"Vrata bez motoru","Manually operated","Tor ohne Motor","Brama bez napędu","Porte sans moteur","Deur zonder motor"]
[null,null,"Garaged. met motor",null,"Vrata s motorem","Electrically operated","Tor mit Motor","Brama z napędem","Porte avec moteur","Garaged. met motor"]
[null,null,"Plafondhoogte [mm]",null,"Výška stropu [mm]","Height of ceiling [mm]","Deckenhöhe [mm]","Wysokość stropu [mm]","Hauteur du plafond [mm]","Plafondhoogte [mm]"]
[null,null,"Hoogte van de onderrand van het dwarsbalkprofiel [mm]",null,"Výška ke spodní hraně překladového profilu [mm]","Height to bottom edge of lintel profile [mm]","Höhe zur unteren Kante des Sturzprofiles [mm]","Wysokość do dolnej krawędzi profilu nadproża [mm]","Hauteur jusqu'à l'arête inférieure du profilé de linteau [mm]","Hoogte van de onderrand van het dwarsbalkprofiel [mm]"]
[null,null,"Onderste rand van een volledig geopende deur [mm]",null,"Spodní hrana plně otevřených vrat [mm]","Bottom edge of fully open door [mm]","Untere Kante des vollständig geöffneten Tors [mm]","Dolna krawędź w pełni otwartej bramy [mm]","Arête inférieure de la porte toute ouverte [mm]","Onderste rand van een volledig geopende deur [mm]"]
[null,null,"Onderste rand van een volledig geopende deur (CPH) [mm]",null,"Spodní hrana plně otevřených vrat (CPH) [mm]","Bottom edge of fully open door (CPH) [mm]","Untere Kante des vollständig geöffneten Tors (CPH) [mm]","Dolna krawędź w pełni otwartej bramy (CPH) [mm]","Arête inférieure de la porte toute ouverte (CPH) [mm]","Onderste rand van een volledig geopende deur (CPH) [mm]"]
[null,null,"Inbouwdiepte van de rails [mm]",null,"Hloubka vedení [mm]","Back room [mm]","Führungstiefe [mm]","Głębokość prowadzenia [mm]","Profondeur du guidage [mm]","Inbouwdiepte van de rails [mm]"]
[null,null,"Diepte van de geleiding (D) [mm]",null,"Hloubka vedení (D) [mm]","Back room (D) [mm]","Führungstiefe (D) [mm]","Głębokość prowadzenia (D) [mm]","Profondeur du guidage (D) [mm]","Diepte van de geleiding (D) [mm]"]
[null,null,"Lengte  van de aandrijving [mm]",null,"Délka pohonu [mm]","Length of motor [mm]","Antriebslänge [mm]","Długość napędu [mm]","Longueur de la propulsion [mm]","Lengte  van de aandrijving [mm]"]
[null,null,"Lengte  van de aandrijving (X) [mm]",null,"Délka pohonu (X) [mm]","Length of motor (X) [mm]","Antriebslänge (X) [mm]","Długość napędu (X) [mm]","Longueur de la propulsion (X) [mm]","Lengte  van de aandrijving (X) [mm]"]
[null,null,"Onderste rand van de horizontale rails [mm]",null,"Spodní hrana horizontálního vedení [mm]","Bottom edge of horizontal tracks [mm]","Untere Kante der Horizontalführung [mm]","Dolna krawędź prowadzenia poziomego [mm]","Arête inférieure du guidage horizontale [mm]","Onderste rand van de horizontale rails [mm]"]
[null,null,"Onderste rand van de horizontale rails (K) [mm]",null,"Spodní hrana horizontálního vedení (K) [mm]","Bottom edge of horizontal tracks (K) [mm]","Untere Kante der Horizontalführung (K) [mm]","Dolna krawędź prowadzenia poziomego (K) [mm]","Arête inférieure du guidage horizontale (K) [mm]","Onderste rand van de horizontale rails (K) [mm]"]
[null,null,"Bevestigingspunt van de motorgeleidingsrail [mm]",null,"Kotvící bod lišty pohonu [mm]","Hanging point for motor track [mm]","Verankerungspunkt der Antriebsleiste [mm]","Punkt uchwycenia szyny napędu [mm]","Point d'ancrage de la glissière de propulsion [mm]","Bevestigingspunt van de motorgeleidingsrail [mm]"]
[null,null,"Bevestigingspunt van de motorgeleidingsrail (E1) [mm]",null,"Kotvící bod lišty pohonu (E1) [mm]","Hanging point for motor track (E1) [mm]","Verankerungspunkt der Antriebsleiste (E1) [mm]","Punkt uchwycenia szyny napędu (E1) [mm]","Point d'ancrage de la glissière de propulsion (E1) [mm]","Bevestigingspunt van de motorgeleidingsrail (E1) [mm]"]
[null,null,"Bevestigingspunt van de aandrijvingsgeleidingsbalk [mm]",null,"Kotvící bod pohonu [mm]","Hanging point for motor [mm]","Verankerungspunkt des Antriebes [mm]","Punkt uchwycenia napędu [mm]","Point d'ancrage de la propulsion [mm]","Bevestigingspunt van de aandrijvingsgeleidingsbalk [mm]"]
[null,null,"Bevestigingsp. van de aandrijvingsgeleidingsbalk (E2) [mm]",null,"Kotvící bod pohonu (E2) [mm]","Hanging point for motor (E2) [mm]","Verankerungspunkt des Antriebes (E2) [mm]","Punkt uchwycenia napędu (E2) [mm]","Point d'ancrage de la propulsion (E2) [mm]","Bevestigingsp. van de aandrijvingsgeleidingsbalk (E2) [mm]"]
[null,null,"Standaardmontage",null,"Standardní montáž","Standard installation","Standardmontage","Instalacja standardowa","Assemblage standard","Standaardmontage"]
[null,null,"Alternatieve montage",null,"Alternativní montáž","Alternative installation","Alternative Montage","Instalacja alternatywna","Assemblage alternatif ","Alternatieve montage"]
[null,null,"Dagmaat hoogte [mm]",null,"Výška stavebního otvoru [mm]","Clear opening height [mm]","Höhe der Bauöffnung [mm]","Wysokość otworu budowlanego [mm]","Hauteur de la baie de construction [mm]","Dagmaat hoogte [mm]"]
[null,null,"Dagmaat hoogte (H) [mm]",null,"Výška stavebního otvoru (H) [mm]","Clear opening height (H) [mm]","Höhe der Bauöffnung (H) [mm]","Wysokość otworu budowlanego (H) [mm]","Hauteur de la baie de construction (H) [mm]","Dagmaat hoogte (H) [mm]"]
[null,null,"Standaardsituatie",null,"Standardní situace","Standard situation","Standardsituation","Sytuacja standardowa","Situation standard","Standaardsituatie"]
[null,null,"Niet-standaardsituaties",null,"Nestandardní situace","Non-standard situation","Ungewöhnliche Situation","Sytuacja niestandardowa","Situation hors de standard","Niet-standaardsituaties"]
[null,null,"Paneel samenstelling en complete opbouw van het deurblad wordt altijd  gebaseerd op FOH.",null,"Skladba panelů a design křídla je vždy řešen vůči FOH.","Panel assembly and design of door leaf is always considered based on FOH.","Die Paneelaufteilung und das Design des Torblattes wird immer auf der Basis von FOH-Mass gelöst.","Skład paneli i konstrukcja skrzydła jest zawsze rozpatrywane na podstawie FOH.","Assemblage de panneau et la conception de battant de porte est toujours considéré comme la base de FOH.","Paneel samenstelling en complete opbouw van het deurblad wordt altijd  gebaseerd op FOH."]
[null,null,"Versie:",null,"Verze:","Version:","Version:","Wersja:","VERSION:","Versie:"]
[null,null,"Formaat:",null,"Formát:","Sheet:","Format:","Format:","FORMAT:","Formaat:"]
[null,null,"Positie van Eurostopcontact CEE, ca. 250mm",null,"Pozice zásuvky, cca. 250 mm","Position of socket, ca. 250 mm","Die Position der Steckdose ca.250 mm","Położenie gniazda około 250 mm","La position de la prise électrique env. 250 mm","Positie van Eurostopcontact CEE, ca. 250mm"]
[null,null,"Eurostopcontact CEE 7/3 of CEE 7/5",null,"Zásuvka typu CEE 7/3 nebo CEE 7/5","CEE 7/3 or CEE 7/5 socket","Steckdose CEE 7/3 oder CEE 7/5","Gniazdo CEE 7/3 lub CEE 7/5","Prise CEE 7/3 ou CEE 7/5","Eurostopcontact CEE 7/3 of CEE 7/5"]
[null,null,"230V, 50Hz, afgezekerd met 6A (10A)",null,"230V, 50Hz, jištěno 6 A (10 A) jističem","230V, 50Hz, protect by 6 A (10 A) circuit breaker","230V, 50Hz, Sicherung 6 A (10 A) mit Schutzschalter","230V, 50Hz, ochrona za pomocą bezpiecznika 6A (10A)","230V, 50Hz, assuré par un disjoncteur 6 A (10 A)","230V, 50Hz, afgezekerd met 6A (10A)"]
[null,null,"Opening breedte ",null,"Šířka stavebního otvoru [mm]","Opening width [mm]","Lichte Breite [mm]","Szerokość otworu [mm]","Largeur de baie [mm]","Opening breedte "]
[null,null,"Opening breedte (W) [mm]",null,"Šířka stavebního otvoru (W) [mm]","Opening width (W) [mm]","Lichte Breite (W) [mm]","Szerokość otworu (W) [mm]","Largeur de baie (W) [mm]","Opening breedte (W) [mm]"]
[null,null,"Bediening",null,"Ovládání","Operated","Bedienung","Sterowanie","Commande","Bediening"]
[null,null,"handbediend",null,"ručně","manually","händisch","ręcznie wykonany","manuelle","handbediend"]
[null,null,"elektrisch",null,"elektricky","electrical ","elektrisch","elektrycznie","motorisée","elektrisch"]
[null,null,"Hoogte van de latei [mm]",null,"Výška nádpraží [mm]","Height of lintel [mm]","Freiraum über Sturz [mm]","Wysokość nadproża [mm]","Retombée de linteau [mm]","Hoogte van de latei [mm]"]
[null,null,"Hoogte van de latei (F) [mm]",null,"Výška nádpraží (F) [mm]","Height of lintel (F) [mm]","Freiraum über Sturz (F) [mm]","Wysokość nadproża (F) [mm]","Retombée de linteau (F) [mm]","Hoogte van de latei (F) [mm]"]
[null,null,"Type motor",null,"Typ pohonu","Type of motor","Der Typ des Antriebs","Rodzaj napędu","Type de motor","Type motor"]
[null,null,"Informatie betreffende de motor",null,"Informace o motoru","Information regarding motor","Die Information über den Antrieb","Informacje o napędu","Information concernant le moteur","Informatie betreffende de motor"]
[null,null,"Plaatsing van de top afdichting",null,"Umístění horního těsnění","Placement of top sealing","Die Unterbringung der Oberdichtung","Umieszczenie górnego uszczelnienia","Emplacement du joint d'étanchéité","Plaatsing van de top afdichting"]
[null,null,"op de latei",null,"na překladu","at lintel","Auf dem Sturz ","Na nadprožu","au linteau","op de latei"]
[null,null,"boven op top paneel",null,"na horní sekci","on the top section","Auf der Obersektion","Na górnej częśći ","sur le panneau supérieur","boven op top paneel"]

{"sheet":"Selections","index":2,"n_rows":23,"n_cols":15,"rows_kept":23,"hidden":true}
["Výběr jazyka",null,"LHF-C"]
["CZ"]
["EN",null,{"$f":"Translation!B36","v":0},null,"Hloubka vedení",{"$nulls":3},{"$f":"Translation!B41","v":0},null,"Délka pohonu",null,null,"Kotvící bod pohonu"]
["DE"]
["PL",null,{"$f":"Translation!B37","v":0},null,0,{"$f":"2575","v":2575},null,null,"GTA 71x",null,{"$f":"I5","v":"GTA 71x"},null,null,{"$f":"I5","v":"GTA 71x"}]
["NL",null,{"$f":"Translation!B38","v":0},null,2001,2700,null,null,"RUN 600",null,0,3540,null,0,3350]
["FR",{"$nulls":3},2126,2825,{"$nulls":4},2376,4240,null,2376,4060]
[{"$nulls":4},2251,2950]
[{"$nulls":4},2376,3075,{"$nulls":4},{"$f":"I6","v":"RUN 600"},null,null,{"$f":"I6","v":"RUN 600"}]
[{"$nulls":4},2501,3325,{"$nulls":4},0,3100,null,0,2950]
[{"$nulls":4},2751,3575,{"$nulls":4},2126,4240,null,2126,4060]
[]
[null,null,"LHR-C"]
[]
[null,null,{"$f":"Translation!C36","v":"Bediening"},null,"Hloubka vedení",{"$nulls":3},{"$f":"Translation!C41","v":"Type motor"},null,"Délka pohonu",null,null,"Kotvící bod pohonu"]
[]
[null,null,{"$f":"Translation!C37","v":"handbediend"},null,0,{"$f":"2575+120","v":2695},null,null,"GTA 71x",null,{"$f":"I17","v":"GTA 71x"},null,null,{"$f":"I17","v":"GTA 71x"}]
[null,null,{"$f":"Translation!C38","v":"elektrisch"},null,2001,{"$f":"2700+120","v":2820},null,null,"RUN 600",null,0,3540,null,0,3350]
[{"$nulls":4},2126,{"$f":"2825+120","v":2945},{"$nulls":4},2376,4240,null,2376,4060]
[null,null,"Umístění horního těsnění",null,2251,{"$f":"2950+120","v":3070},null,null,{"$f":"Translation!C40","v":"Hoogte van de latei (F) [mm]"}]
[{"$nulls":4},2376,{"$f":"3075+120","v":3195},null,{"$f":"'LHR-C'!J6","v":0},{"$f":"IF(H21=Selections!C17,90,IF(H21=Selections!C18,125,\"Error\"))","v":"Error"},null,{"$f":"I18","v":"RUN 600"},null,null,{"$f":"I18","v":"RUN 600"}]
[null,null,{"$f":"Translation!C44","v":"op de latei"},null,2501,{"$f":"3325+120","v":3445},null,{"$f":"'LHR-C'!J8","v":0},{"$f":"IF(H22=Selections!C22,0,IF(H22=Selections!C23,35,\"Error\"))","v":"Error"},null,0,3100,null,0,2950]
[null,null,{"$f":"Translation!C45","v":"boven op top paneel"},null,2751,{"$f":"3575+120","v":3695},{"$nulls":4},2126,4240,null,2126,4060]